bitfinex/quotes_SOLUSD_20220302
["timestamp","ask_amount","ask_price","bid_price","bid_amount"]
[1646243602619,24.28792768,101.85,101.74,230.23102139]
[1646243603227,1.74513951,101.84,101.74,171.98102139]
[1646243603423,1.74513951,101.84,101.74,230.23102139]
[1646243603622,24.28792768,101.85,101.74,230.23102139]
[1646243605636,24.28792768,101.85,101.74,229.98102139]
[1646243606037,22.9347,101.85,101.74,234.98102139]
[1646243606439,44.71649128,101.85,101.74,234.98102139]
[1646243607040,44.71649128,101.85,101.74,235.23102139]
[1646243607641,44.71649128,101.85,101.74,234.98102139]
[1646243607843,46.06971896,101.85,101.74,229.98102139]
[1646243608045,46.06971896,101.85,101.75,27.26018185]
[1646243608241,44.71649128,101.85,101.78,58.25]
[1646243608445,44.71649128,101.85,101.79,44.80722725]
[1646243609943,1.74513951,101.84,101.79,44.80722725]
[1646243610146,3.09836719,101.84,101.79,44.80722725]
[1646243610444,24.18806147,101.84,101.79,44.80722725]
[1646243610844,26.77382804,101.84,101.79,44.80722725]
[1646243611046,41.51902804,101.84,101.79,44.80722725]
[1646243611244,24.18806147,101.84,101.79,44.80722725]
[1646243611443,24.28792768,101.85,101.79,44.80722725]
[1646243611642,26.87369425,101.85,101.79,44.80722725]
[1646243612449,48.65548553,101.85,101.79,44.80722725]
[1646243613651,50.40062504,101.85,101.79,44.80722725]
[1646243614250,66.55607332,101.85,101.75,14.7432]
[1646243614448,1.35322768,101.84,101.74,5.0]
[1646243614657,1.35322768,101.83,101.73,76.2322]
[1646243614850,38.83014377,101.83,101.7,10.26345269]
[1646243615049,63.77137568,101.82,101.7,5.0]
[1646243615350,14.7538,101.77,101.71,60.8830106]
[1646243616153,11.73,101.79,101.71,60.8830106]
[1646243616556,33.2229604,101.79,101.71,60.8830106]
[1646243616752,13.4707935,101.79,101.71,60.8830106]
[1646243617154,1.7407935,101.79,101.71,60.8830106]
[1646243618157,1.7407935,101.79,101.71,79.5640106]
[1646243618357,1.7407935,101.79,101.71,75.6330106]
[1646243619157,1.7407935,101.79,101.71,60.8830106]
[1646243619358,26.03838842,101.79,101.71,60.8830106]
[1646243619760,27.41408663,101.79,101.71,60.8830106]
[1646243619960,13.16981816,101.78,101.71,60.8830106]
[1646243620363,36.24886893,101.77,101.68,8.995]
[1646243620561,11.73,101.76,101.68,8.995]
[1646243620763,47.66680365,101.76,101.68,8.995]
[1646243620962,21.49496893,101.75,101.68,8.995]
[1646243621163,11.73,101.74,101.68,8.995]
[1646243621368,55.19742274,101.74,101.68,56.24740035]
[1646243621661,21.49496893,101.73,101.68,8.995]
[1646243621862,37.77039695,101.73,101.68,8.995]
[1646243622064,1.74280203,101.72,101.68,8.995]
[1646243622265,33.22496893,101.72,101.68,8.995]
[1646243622464,34.6394458,101.72,101.68,8.995]
[1646243622763,34.6394458,101.72,101.68,53.3312465]
[1646243622764,14.7642,101.7,101.68,53.3312465]
[1646243622968,14.7642,101.7,101.68,8.995]
[1646243624966,14.7642,101.7,101.68,67.94191282]
[1646243625766,14.7642,101.7,101.68,8.995]
[1646243626868,14.7642,101.7,101.67,52.79337629]
[1646243627067,14.7642,101.7,101.62,14.7628]
[1646243627367,14.7667,101.68,101.59,131.0317]
[1646243627566,14.7667,101.68,101.59,127.3497]
[1646243627970,16.51537609,101.68,101.59,127.0997]
[1646243628166,16.51537609,101.68,101.6,53.59664505]
[1646243629567,1.74867609,101.68,101.6,53.84664505]
[1646243629767,16.5135425,101.7,101.62,55.67840228]
[1646243630667,25.59759175,101.7,101.62,55.67840228]
[1646243630873,45.34975865,101.7,101.62,55.67840228]
[1646243631068,45.34975865,101.7,101.59,47.0917]
[1646243631270,58.78916593,101.7,101.58,0.52996416]
[1646243631469,14.7714,101.65,101.58,0.52996416]
[1646243631682,13.10691905,101.67,101.58,0.52996416]
[1646243631870,21.49678099,101.64,101.58,0.52996416]
[1646243632068,33.22678099,101.64,101.58,0.52996416]
[1646243632268,19.7521669,101.63,101.58,0.52996416]
[1646243632469,14.7787,101.6,101.58,6.416e-05]
[1646243632669,81.89068786,101.62,101.56,3.935]
[1646243632868,11.73,101.61,101.56,3.935]
[1646243633069,1.74461409,101.59,101.56,3.935]
[1646243633269,1.74461409,101.59,101.49,5.0]
[1646243633473,11.73,101.58,101.49,5.0]
[1646243633671,13.43710792,101.58,101.49,5.0]
[1646243633970,13.43710792,101.58,101.41,23.5931]
[1646243633971,23.7170679,101.57,101.41,23.5931]
[1646243634170,11.73,101.56,101.41,23.0931]
[1646243634373,11.73,101.56,101.42,58.4512916]
[1646243634374,14.94493022,101.56,101.42,58.4512916]
[1646243634573,1.74067277,101.55,101.42,58.4512916]
[1646243634769,28.25827277,101.55,101.42,58.4512916]
[1646243634971,30.4576,101.55,101.43,5.0]
[1646243635170,30.4576,101.55,101.44,49.64464181]
[1646243635171,26.5176,101.55,101.44,49.64464181]
[1646243635675,1.74067277,101.57,101.46,45.61918165]
[1646243635878,13.47067277,101.57,101.46,45.61918165]
[1646243636075,28.25537277,101.57,101.46,45.86918165]
[1646243636279,30.4547,101.57,101.46,45.86918165]
[1646243636678,53.64641783,101.57,101.48,52.67268346]
[1646243636881,1.74067277,101.56,101.48,52.92268346]
[1646243637079,3.94,101.55,101.48,52.67268346]
[1646243637478,34.92171783,101.57,101.48,52.92268346]
[1646243637677,23.19171783,101.57,101.48,52.92268346]
[1646243637907,50.77187277,101.58,101.48,52.92268346]
[1646243638107,11.73,101.58,101.48,67.70448346]
[1646243638714,37.97221783,101.59,101.5,54.26987401]
[1646243639011,37.97221783,101.59,101.5,54.51987401]
[1646243639812,40.40186218,101.59,101.5,54.51987401]
[1646243640011,40.40186218,101.59,101.5,69.29897401]
[1646243640211,28.05781332,101.59,101.5,69.29897401]
[1646243640613,28.05781332,101.59,101.5,68.29897401]
[1646243641616,28.05781332,101.59,101.5,68.04897401]
[1646243642515,29.79848609,101.59,101.5,68.04897401]
[1646243642717,29.79848609,101.59,101.5,166.34897401]
[1646243642916,24.9323906,101.59,101.5,224.84897401]
[1646243643116,16.82740456,101.61,101.51,0.4946033]
[1646243643319,16.82740456,101.61,101.5,236.57897401]
[1646243643516,16.82740456,101.61,101.5,224.84897401]
[1646243643717,16.82740456,101.61,101.5,126.54897401]
[1646243643718,38.49313146,101.61,101.5,126.54897401]
[1646243643918,55.70127581,101.61,101.5,126.54897401]
[1646243644723,58.05216031,101.61,101.5,126.54897401]
[1646243644921,54.11316031,101.61,101.5,126.54897401]
[1646243646018,14.7797,101.6,101.5,126.54897401]
[1646243646423,16.50890145,101.6,101.5,224.84897401]
[1646243646826,1.72920145,101.6,101.5,224.84897401]
[1646243647125,15.31804891,101.61,101.5,236.57897401]
[1646243647523,1.72093605,101.62,101.5,236.57897401]
[1646243647722,5.65893605,101.64,101.51,0.48671064]
[1646243647921,4.1505804,101.64,101.52,170.27332251]
[1646243648129,4.1505804,101.64,101.54,156.55]
[1646243648323,4.1505804,101.64,101.56,98.3]
[1646243648522,4.1505804,101.64,101.56,110.28]
[1646243648730,4.1505804,101.64,101.57,53.94774968]
[1646243649526,21.2799649,101.64,101.57,53.94774968]
[1646243649726,4.1505804,101.64,101.57,53.94774968]
[1646243650123,4.1505804,101.64,101.57,208.99774968]
[1646243650323,4.1505804,101.64,101.57,110.69774968]
[1646243650723,4.1505804,101.64,101.57,52.44774968]
[1646243650924,17.73231829,101.64,101.57,52.44774968]
[1646243651225,20.73215131,101.64,101.57,52.44774968]
[1646243651824,37.86153581,101.64,101.57,52.44774968]
[1646243652426,34.86170279,101.64,101.57,52.44774968]
[1646243652624,17.73231829,101.64,101.57,150.74774968]
[1646243652825,15.30267394,101.64,101.57,52.44774968]
[1646243653426,2.42964435,101.63,101.57,52.44774968]
[1646243653825,4.1505804,101.63,101.57,52.44774968]
[1646243654627,1.72093605,101.63,101.57,52.44774968]
[1646243655030,2.42964435,101.62,101.57,52.44774968]
[1646243655627,3.6505804,101.62,101.57,52.44774968]
[1646243655828,1.92964435,101.62,101.57,52.44774968]
[1646243658031,5.65596473,101.64,101.57,52.44774968]
[1646243658432,1.92964435,101.62,101.57,52.44774968]
[1646243660331,3.64954835,101.62,101.57,52.44774968]
[1646243660538,20.77893285,101.62,101.57,52.44774968]
[1646243660934,0.04333334,101.61,101.57,52.44774968]
[1646243662132,14.82043334,101.61,101.57,52.44774968]
[1646243662832,16.75007769,101.61,101.57,52.44774968]
[1646243664635,1.71598246,101.6,101.57,52.44774968]
[1646243664837,1.71598246,101.6,101.51,37.5068]
[1646243665334,3.68896015,101.6,101.51,37.5068]
[1646243665535,3.68896015,101.6,101.51,41.4448]
[1646243665937,3.68896015,101.6,101.52,56.63414489]
[1646243666835,48.2184,101.62,101.52,232.14874489]
[1646243667034,48.2184,101.62,101.52,243.87874489]
[1646243667236,50.19137769,101.62,101.52,243.87874489]
[1646243667536,50.19137769,101.62,101.52,239.94074489]
[1646243668339,3.938,101.63,101.52,239.94074489]
[1646243668537,150.97626386,101.65,101.55,58.25]
[1646243668837,1.97297769,101.64,101.56,119.00392118]
[1646243669237,1.97297769,101.64,101.57,156.55]
[1646243670442,1.97297769,101.64,101.58,207.32337046]
[1646243670638,1.97297769,101.64,101.58,207.57337046]
[1646243671839,23.78998246,101.67,101.58,207.57337046]
[1646243672039,1.99857822,101.66,101.58,51.02337046]
[1646243672639,17.6199306,101.66,101.58,50.77337046]
[1646243672839,38.02529756,101.66,101.58,50.77337046]
[1646243673042,36.02671934,101.66,101.58,50.77337046]
[1646243673242,1.99857822,101.65,101.58,50.77337046]
[1646243673642,3.71456068,101.65,101.58,50.77337046]
[1646243675042,3.71456068,101.65,101.58,149.07337046]
[1646243675240,3.71456068,101.65,101.58,50.77337046]
[1646243675440,1.71598246,101.65,101.58,50.77337046]
[1646243675643,9.17805179,101.64,101.58,50.77337046]
[1646243675841,15.12313082,101.64,101.58,50.77337046]
[1646243676043,33.21577152,101.63,101.58,50.77337046]
[1646243676341,18.6893845,101.62,101.58,50.77337046]
[1646243676542,22.41444599,101.62,101.58,50.77337046]
[1646243676742,16.49034159,101.61,101.58,50.77337046]
[1646243678646,16.49034159,101.61,101.55,46.2857]
[1646243678846,16.49034159,101.61,101.54,229.436]
[1646243679045,16.49034159,101.61,101.54,72.886]
[1646243679245,20.50849965,101.61,101.54,72.886]
[1646243679445,20.50849965,101.61,101.53,58.25]
[1646243679647,20.50849965,101.61,101.53,156.55]
[1646243679845,1.71344159,101.61,101.55,98.3]
[1646243680046,24.58804159,101.64,101.56,56.4207707]
[1646243680246,25.18563908,101.64,101.56,56.4207707]
[1646243680451,2.00907903,101.63,101.56,56.4207707]
[1646243680955,18.49672062,101.63,101.56,56.4207707]
[1646243681750,22.43272062,101.63,101.56,56.4207707]
[1646243682852,18.49672062,101.63,101.56,56.4207707]
[1646243683653,28.53490512,101.63,101.51,164.7853]
[1646243683952,3.938,101.62,101.51,148.0553]
[1646243684153,18.41981161,101.62,101.51,49.7553]
[1646243684352,20.40282609,101.61,101.51,49.7553]
[1646243684555,80.08437942,101.61,101.52,45.99069107]
[1646243684752,1.71344159,101.6,101.52,45.99069107]
[1646243684953,1.71344159,101.6,101.52,202.54069107]
[1646243685754,14.778,101.61,101.52,202.54069107]
[1646243685957,23.63667718,101.61,101.52,202.54069107]
[1646243686557,14.778,101.61,101.52,202.54069107]
[1646243687555,23.17639222,101.61,101.52,202.54069107]
[1646243688057,14.778,101.61,101.52,202.54069107]
[1646243689056,25.73896514,101.61,101.52,202.54069107]
[1646243689257,25.73896514,101.61,101.52,202.79069107]
[1646243689657,14.778,101.61,101.52,202.79069107]
[1646243690060,14.778,101.61,101.52,202.54069107]
[1646243690359,14.7784,101.6,101.52,45.99069107]
[1646243690761,27.2165254,101.6,101.52,45.99069107]
[1646243691458,14.7798,101.59,101.52,45.99069107]
[1646243691858,1.07500104,101.58,101.52,45.99069107]
[1646243692759,1.71344159,101.59,101.52,45.99069107]
[1646243693159,14.7816,101.58,101.52,45.99069107]
[1646243693759,16.49504159,101.58,101.52,45.99069107]
[1646243694763,2.67762728,101.57,101.52,45.99069107]
[1646243694963,17.46042728,101.57,101.49,172.1318]
[1646243695164,17.46042728,101.57,101.49,148.0121]
[1646243695564,17.46042728,101.57,101.5,26.97671757]
[1646243695963,17.46042728,101.57,101.5,73.36932844]
[1646243696364,17.46042728,101.57,101.5,46.39261087]
[1646243696966,19.17386887,101.57,101.5,46.39261087]
[1646243697166,16.49624159,101.57,101.5,202.94261087]
[1646243697567,1.71344159,101.57,101.5,202.94261087]
[1646243697970,1.71344159,101.59,101.5,46.39261087]
[1646243698168,22.539451,101.59,101.5,46.39261087]
[1646243698570,26.478451,101.59,101.5,46.39261087]
[1646243698971,14.7815,101.58,101.5,46.39261087]
[1646243699571,16.49494159,101.58,101.5,46.39261087]
[1646243700574,16.49494159,101.58,101.5,144.69261087]
[1646243700973,16.49494159,101.58,101.5,46.39261087]
[1646243701692,26.02238391,101.57,101.5,46.39261087]
[1646243702589,27.7358255,101.57,101.5,46.39261087]
[1646243702790,12.9528255,101.57,101.5,46.39261087]
[1646243702989,12.9528255,101.57,101.49,3.938]
[1646243702990,0.56030094,101.55,101.49,3.938]
[1646243703790,1.71344159,101.54,101.49,3.938]
[1646243703992,10.697696,101.53,101.49,3.938]
[1646243704190,10.697696,101.53,101.44,39.4543594]
[1646243704393,1.71344159,101.52,101.44,39.4543594]
[1646243704591,1.71344159,101.52,101.45,26.99782102]
[1646243704990,13.44344159,101.52,101.45,26.99782102]
[1646243705190,1.10198885,101.51,101.45,77.33146181]
[1646243705390,2.81543044,101.51,101.45,50.33364079]
[1646243705993,14.7932,101.5,101.45,50.33364079]
[1646243706293,14.7932,101.5,101.41,72.2910594]
[1646243706495,14.7932,101.5,101.41,72.5410594]
[1646243706693,14.7932,101.5,101.42,26.9779963]
[1646243706992,1.71344159,101.5,101.42,26.9779963]
[1646243707193,25.492396,101.49,101.43,50.53236753]
[1646243707993,14.7947,101.49,101.43,50.53236753]
[1646243708992,12.18128944,101.5,101.43,50.53236753]
[1646243709393,1.71344159,101.5,101.43,50.53236753]
[1646243709995,16.50644159,101.5,101.43,50.53236753]
[1646243710497,20.79565396,101.52,101.43,207.08236753]
[1646243710696,1.71344159,101.52,101.43,207.33236753]
[1646243710997,3.94,101.54,101.45,156.55]
[1646243711197,138.52404464,101.55,101.47,156.55]
[1646243711397,138.52404464,101.55,101.48,199.31819708]
[1646243711597,138.52404464,101.55,101.48,214.35049708]
[1646243711798,3.41221237,101.57,101.48,214.35049708]
[1646243711997,7.35121237,101.57,101.48,214.35049708]
[1646243712398,7.35121237,101.57,101.48,116.05049708]
[1646243712698,29.25459137,101.56,101.48,116.05049708]
[1646243712898,18.6893845,101.56,101.48,214.35049708]
[1646243713299,18.6893845,101.56,101.48,214.10049708]
[1646243713499,18.6893845,101.56,101.48,214.35049708]
[1646243713900,7.35121237,101.57,101.48,214.35049708]
[1646243714100,3.41221237,101.57,101.48,214.35049708]
[1646243714302,3.41221237,101.57,101.48,226.08049708]
[1646243715102,3.939,101.6,101.49,2.54904003]
[1646243715302,57.9925845,101.61,101.5,168.28]
[1646243715501,3.41221237,101.59,101.5,171.5763]
[1646243715902,22.10159687,101.59,101.51,47.67091288]
[1646243716102,8.86958561,101.58,101.51,47.67091288]
[1646243716501,43.76618032,101.58,101.51,47.67091288]
[1646243717004,34.89659471,101.58,101.51,47.67091288]
[1646243717603,1.71344159,101.57,101.51,47.67091288]
[1646243718206,1.71344159,101.59,101.51,204.22091288]
[1646243718809,1.71344159,101.59,101.51,204.47091288]
[1646243719405,26.23884159,101.61,101.51,204.47091288]
[1646243719608,4.12565396,101.61,101.51,216.20091288]
[1646243720106,4.12565396,101.61,101.51,221.20091288]
[1646243720310,3.41221237,101.61,101.51,270.45271288]
[1646243720510,176.77830792,101.63,101.51,270.19477796]
[1646243720808,176.77830792,101.63,101.55,156.55]
[1646243721011,176.77830792,101.63,101.55,168.53]
[1646243721207,19.6126158,101.64,101.55,168.53]
[1646243721408,19.6126158,101.64,101.57,156.55]
[1646243721609,19.6126158,101.64,101.58,116.51512362]
[1646243722215,22.6253845,101.67,101.58,229.58382362]
[1646243722412,84.72995377,101.68,101.58,229.83382362]
[1646243722613,3.41221237,101.67,101.58,234.83382362]
[1646243722812,3.41221237,101.67,101.58,229.83382362]
[1646243723012,9.05906551,101.67,101.58,131.53382362]
[1646243723213,36.61644577,101.67,101.58,131.53382362]
[1646243723815,32.68044577,101.67,101.58,131.53382362]
[1646243724015,32.68044577,101.67,101.58,229.83382362]
[1646243724215,32.68044577,101.67,101.58,131.53382362]
[1646243724515,13.99106127,101.67,101.58,131.53382362]
[1646243724914,13.99106127,101.67,101.58,131.28382362]
[1646243726118,28.75946127,101.67,101.58,131.28382362]
[1646243726318,32.68044577,101.67,101.58,73.03382362]
[1646243726517,46.27765329,101.67,101.58,58.26512362]
[1646243726717,2.93168909,101.65,101.58,58.26512362]
[1646243727119,1.71085314,101.64,101.56,14.771]
[1646243727322,1.71085314,101.64,101.54,36.1875]
[1646243727520,31.57287769,101.64,101.54,14.7735]
[1646243727720,13.59720752,101.63,101.54,14.7735]
[1646243727942,18.72027303,101.63,101.54,14.7735]
[1646243728140,30.25472862,101.62,101.55,49.78227848]
[1646243728345,21.5269043,101.62,101.55,49.78227848]
[1646243728742,1.71085314,101.62,101.55,49.78227848]
[1646243729144,13.59720752,101.63,101.55,64.55557848]
[1646243729343,3.41221237,101.62,101.55,162.85557848]
[1646243729547,3.41221237,101.62,101.55,64.55557848]
[1646243729744,0.69036003,101.61,101.55,64.55557848]
[1646243730145,3.41221237,101.62,101.55,64.55557848]
[1646243730345,3.41221237,101.62,101.55,49.78227848]
[1646243730747,18.71982516,101.62,101.53,96.354]
[1646243730946,18.71982516,101.62,101.52,24.1824]
[1646243730947,38.53587632,101.62,101.52,24.1824]
[1646243731146,74.02107632,101.62,101.52,24.1824]
[1646243731349,75.67303711,101.62,101.5,73.0294]
[1646243731549,3.938,101.61,101.5,95.8082]
[1646243731746,9.83226735,101.6,101.51,53.50307992]
[1646243731951,11.54267262,101.6,101.51,53.50307992]
[1646243732148,3.41221237,101.59,101.5,37.5582]
[1646243732347,5.12261764,101.59,101.49,24.4718]
[1646243732552,21.52645643,101.58,101.49,24.4718]
[1646243733148,1.71040527,101.57,101.48,14.7824]
[1646243733350,9.83226735,101.55,101.48,44.51821368]
[1646243734152,9.83226735,101.55,101.47,3.939]
[1646243734351,13.19513259,101.55,101.47,3.939]
[1646243734952,11.54267262,101.55,101.47,3.939]
[1646243735154,11.54267262,101.55,101.48,43.01384951]
[1646243735353,26.32897262,101.55,101.48,43.01384951]
[1646243738558,9.83226735,101.55,101.48,43.01384951]
[1646243738760,28.22480527,101.57,101.48,199.56384951]
[1646243738960,14.7844,101.57,101.48,199.56384951]
[1646243739261,3.94,101.58,101.48,199.81384951]
[1646243739460,3.94,101.58,101.5,156.55]
[1646243739660,3.94,101.58,101.5,156.8]
[1646243739862,10.33428677,101.57,101.51,44.09461332]
[1646243740061,10.33428677,101.57,101.51,44.34461332]
[1646243740262,157.44101155,101.59,101.51,44.34461332]
[1646243741263,167.31234733,101.59,101.51,44.34461332]
[1646243742164,157.44101155,101.59,101.51,200.89461332]
[1646243742564,157.44101155,101.59,101.51,102.59461332]
[1646243742965,51.9588,101.61,101.51,102.59461332]
[1646243743165,9.65182185,101.6,101.51,102.59461332]
[1646243743664,9.65182185,101.6,101.51,200.89461332]
[1646243744167,9.65182185,101.6,101.51,102.59461332]
[1646243744466,11.36849328,101.6,101.51,102.59461332]
[1646243744667,11.36849328,101.6,101.51,200.89461332]
[1646243745867,1.71667143,101.6,101.51,200.89461332]
[1646243746769,1.71667143,101.6,101.51,102.59461332]
[1646243746969,1.71667143,101.6,101.51,200.89461332]
[1646243747168,62.799,101.61,101.51,200.89461332]
[1646243747570,48.0208,101.61,101.51,250.14361332]
[1646243747771,34.52258723,101.62,101.51,250.14361332]
[1646243747772,14.4933,101.62,101.51,264.42265335]
[1646243747973,188.30708734,101.65,101.53,156.55]
[1646243748169,2.69148943,101.64,101.55,156.55]
[1646243748370,2.69148943,101.64,101.57,156.55]
[1646243748568,135.01725966,101.65,101.58,200.07213309]
[1646243748770,135.01725966,101.65,101.58,101.77213309]
[1646243749671,135.01725966,101.65,101.58,116.54063309]
[1646243749872,2.12845338,101.64,101.58,58.29063309]
[1646243750881,2.12845338,101.64,101.58,43.52213309]
[1646243754496,3.84512481,101.64,101.55,22.5876]
[1646243755501,14.774,101.63,101.56,54.91648667]
[1646243756099,9.19540126,101.62,101.56,54.91648667]
[1646243756900,14.774,101.63,101.56,54.91648667]
[1646243757201,44.88102768,101.65,101.56,211.71648667]
[1646243757402,39.5918,101.65,101.56,211.71648667]
[1646243757802,24.8199,101.65,101.56,211.71648667]
[1646243759303,27.41075061,101.65,101.56,211.71648667]
[1646243759706,27.41075061,101.65,101.56,113.41648667]
[1646243760406,24.8199,101.65,101.56,113.41648667]
[1646243760611,24.8199,101.65,101.56,211.71648667]
[1646243761608,26.53657143,101.65,101.56,113.41648667]
[1646243761807,31.2487838,101.65,101.56,113.41648667]
[1646243762007,31.2487838,101.65,101.56,54.91648667]
[1646243762207,62.62722836,101.65,101.56,54.91648667]
[1646243762407,75.15240733,101.65,101.56,54.91648667]
[1646243762608,5.28922768,101.64,101.56,54.91648667]
[1646243762807,17.01922768,101.64,101.56,54.91648667]
[1646243763008,1.71667143,101.63,101.56,54.91648667]
[1646243764008,14.7756,101.62,101.56,54.91648667]
[1646243766912,3.06989911,101.63,101.56,54.91648667]
[1646243767111,1.71667143,101.63,101.56,54.91648667]
[1646243767512,3.06989911,101.63,101.56,54.91648667]
[1646243768114,1.35322768,101.63,101.56,211.71648667]
[1646243768316,16.12672768,101.64,101.56,211.71648667]
[1646243769020,1.35322768,101.64,101.56,211.71648667]
[1646243772218,1.35322768,101.64,101.56,113.16648667]
[1646243772418,1.35322768,101.63,101.56,54.91648667]
[1646243772820,1.35322768,101.63,101.56,211.46648667]
[1646243773023,1.35322768,101.63,101.56,113.16648667]
[1646243773222,1.35322768,101.63,101.56,211.46648667]
[1646243773625,3.06989911,101.63,101.56,54.91648667]
[1646243773922,1.35322768,101.62,101.56,54.91648667]
[1646243775721,1.35322768,101.63,101.56,211.46648667]
[1646243779438,1.35322768,101.63,101.56,211.71648667]
[1646243779636,25.81352768,101.64,101.56,211.71648667]
[1646243780136,1.35322768,101.63,101.56,54.91648667]
[1646243781251,16.12722768,101.63,101.56,54.91648667]
[1646243781453,1.35322768,101.62,101.56,54.91648667]
[1646243782254,16.12862768,101.62,101.54,24.5313]
[1646243782455,1.35322768,101.61,101.52,195.7236]
[1646243782854,1.35322768,101.6,101.52,73.0264]
[1646243783063,1.35322768,101.6,101.52,58.25]
[1646243783256,1.35322768,101.6,101.53,54.8882811]
[1646243784159,16.13172768,101.6,101.53,54.8882811]
[1646243785659,14.7785,101.6,101.53,54.8882811]
[1646243785861,16.13172768,101.6,101.53,54.8882811]
[1646243786062,16.13172768,101.6,101.51,3.938]
[1646243786063,3.06989911,101.6,101.51,3.938]
[1646243786260,17.02122768,101.59,101.51,3.938]
[1646243786565,18.75503761,101.59,101.51,3.938]
[1646243786864,1.71667143,101.58,101.51,3.938]
[1646243787064,14.7843,101.56,101.51,3.938]
[1646243789264,14.7843,101.56,101.51,61.2433923]
[1646243789465,40.56637143,101.58,101.51,61.2433923]
[1646243790465,40.56637143,101.58,101.51,3.938]
[1646243790466,25.78417143,101.58,101.51,3.938]
[1646243790666,14.7828,101.57,101.51,3.938]
[1646243791566,14.7828,101.57,101.51,58.44145072]
[1646243792168,1.71667143,101.57,101.51,3.938]
[1646243792369,13.44667143,101.57,101.44,11.73]
[1646243792571,13.44667143,101.57,101.43,121.4515]
[1646243792572,53.99159284,101.57,101.43,121.4515]
[1646243792773,4.71221237,101.56,101.43,23.1515]
[1646243792972,17.38314498,101.55,101.43,23.1515]
[1646243793171,14.7917,101.51,101.44,43.23274443]
[1646243793971,23.5967,101.51,101.44,43.23274443]
[1646243794372,14.793,101.5,101.43,23.1515]
[1646243794578,10.52167143,101.51,101.42,24.2376]
[1646243795473,10.52167143,101.51,101.43,56.76162741]
[1646243796079,14.7946,101.49,101.42,24.2376]
[1646243796280,10.52167143,101.51,101.41,77.6612]
[1646243796479,3.942,101.5,101.41,77.6612]
[1646243796682,1.71667143,101.49,101.41,77.6612]
[1646243796880,28.8955,101.5,101.41,77.6612]
[1646243797085,28.8955,101.5,101.42,58.41841881]
[1646243797581,30.61229279,101.5,101.42,58.41841881]
[1646243797786,26.67029279,101.5,101.42,58.41841881]
[1646243798183,14.7953,101.49,101.42,58.41841881]
[1646243800004,14.7953,101.49,101.42,214.96841881]
[1646243800405,14.7953,101.49,101.42,116.66841881]
[1646243801208,24.9535,101.5,101.42,116.66841881]
[1646243801408,24.9535,101.5,101.42,58.41841881]
[1646243802411,28.8955,101.5,101.42,58.41841881]
[1646243805311,24.9535,101.5,101.42,58.41841881]
[1646243805512,24.9535,101.5,101.42,156.71841881]
[1646243805713,20.672,101.52,101.42,215.21841881]
[1646243805913,23.3708,101.53,101.42,215.21841881]
[1646243806115,23.3708,101.53,101.42,226.94841881]
[1646243806314,23.3708,101.53,101.42,229.49745884]
[1646243806514,23.3708,101.53,101.42,252.79595884]
[1646243806721,22.8674,101.55,101.42,252.79595884]
[1646243806922,1.71425569,101.56,101.45,0.5078983]
[1646243807122,188.47649094,101.58,101.48,156.55]
[1646243807324,188.47649094,101.58,101.48,168.53]
[1646243807520,3.94,101.59,101.48,168.53]
[1646243807721,3.94,101.59,101.48,171.07904003]
[1646243808121,3.94,101.59,101.5,156.55]
[1646243808426,3.94,101.59,101.52,156.55]
[1646243808621,3.938,101.61,101.52,164.161]
[1646243808821,1.35322768,101.63,101.52,164.161]
[1646243809026,1.35322768,101.63,101.52,166.71004003]
[1646243809421,1.35322768,101.63,101.52,164.161]
[1646243809824,1.35322768,101.63,101.52,156.8]
[1646243810023,1.35322768,101.63,101.53,113.0752]
[1646243810222,21.78098337,101.64,101.53,113.3252]
[1646243810623,1.35322768,101.63,101.53,113.3252]
[1646243810826,1.35322768,101.63,101.53,171.5752]
[1646243811828,3.06748337,101.63,101.53,171.5752]
[1646243812227,3.06748337,101.63,101.53,73.2752]
[1646243812825,3.06748337,101.63,101.53,73.0252]
[1646243813026,21.78038337,101.63,101.53,73.0252]
[1646243813226,17.84438337,101.63,101.53,73.0252]
[1646243813625,17.84438337,101.63,101.53,73.2752]
[1646243813825,0.5562857,101.62,101.53,73.2752]
[1646243814025,0.5562857,101.62,101.53,15.0252]
[1646243815330,0.5562857,101.62,101.53,113.3252]
[1646243815628,0.5562857,101.62,101.53,171.5752]
[1646243816029,0.5562857,101.62,101.53,183.3052]
[1646243816629,49.09732768,101.65,101.53,185.85424003]
[1646243816828,49.65361338,101.65,101.53,185.85424003]
[1646243817029,1.90951338,101.65,101.53,185.85424003]
[1646243817230,1.35322768,101.65,101.57,156.55]
[1646243817432,1.35322768,101.67,101.59,156.55]
[1646243817631,54.10192768,101.68,101.59,168.53]